[Event "Late-Titled-Tuesday-Blitz-March-05-2024"]
[Site "Chess.com"]
[Date "2024.03.05"]
[Round "5"]
[White "Polish_fighter3000"]
[Black "baki83"]
[Result "1-0"]
[WhiteElo "3114"]
[BlackElo "2822"]
[TimeControl "180+1"]
[EndTime "14:55:09 PST"]
[Termination "Polish_fighter3000 won on time"]

1. e4 {[%clk 0:03:00.9]} 1... c5 {[%clk 0:02:59.5]} 2. Nf3 {[%clk 0:03:01.1]}
2... e6 {[%clk 0:03:00]} 3. d4 {[%clk 0:03:00.7]} 3... cxd4 {[%clk 0:03:00.4]}
4. Nxd4 {[%clk 0:03:01.5]} 4... Nc6 {[%clk 0:03:00.9]} 5. Nc3 {[%clk 0:03:01.7]}
5... Qc7 {[%clk 0:03:01.6]} 6. Be3 {[%clk 0:03:00.9]} 6... a6 {[%clk 0:02:59.2]}
7. a3 {[%clk 0:03:00.7]} 7... b5 {[%clk 0:02:56.7]} 8. Nxc6 {[%clk 0:02:52.9]}
8... dxc6 {[%clk 0:02:51.8]} 9. Qf3 {[%clk 0:02:42.4]} 9... Bb7 {[%clk
0:02:41.1]} 10. Qg3 {[%clk 0:02:38.4]} 10... e5 {[%clk 0:02:37.5]} 11. f4 {[%clk
0:02:32.3]} 11... Ne7 {[%clk 0:02:24.3]} 12. h4 {[%clk 0:02:13.4]} 12... O-O-O
{[%clk 0:02:03.5]} 13. h5 {[%clk 0:02:02.6]} 13... f6 {[%clk 0:01:56.1]} 14. Qf2
{[%clk 0:01:44.5]} 14... c5 {[%clk 0:01:49.8]} 15. Bxc5 {[%clk 0:01:42.7]} 15...
Nc6 {[%clk 0:01:45.1]} 16. Bb6 {[%clk 0:01:41.4]} 16... Qd6 {[%clk 0:01:29.6]}
17. Bxd8 {[%clk 0:01:40.1]} 17... Qxd8 {[%clk 0:01:29.2]} 18. Nd5 {[%clk
0:01:17.8]} 18... exf4 {[%clk 0:01:16.5]} 19. O-O-O {[%clk 0:01:15.4]} 19... Bd6
{[%clk 0:01:10.4]} 20. Nxf4 {[%clk 0:01:08]} 20... Qc7 {[%clk 0:00:57.9]} 21.
Nd5 {[%clk 0:01:04.5]} 21... Qf7 {[%clk 0:00:54.1]} 22. h6 {[%clk 0:00:58.8]}
22... Be5 {[%clk 0:00:53.7]} 23. hxg7 {[%clk 0:00:52.3]} 23... Qxg7 {[%clk
0:00:53.5]} 24. Nb6+ {[%clk 0:00:52]} 24... Kb8 {[%clk 0:00:51.4]} 25. Nd7+
{[%clk 0:00:52.1]} 25... Ka8 {[%clk 0:00:51.3]} 26. Nxe5 {[%clk 0:00:49.7]}
26... Nxe5 {[%clk 0:00:51.4]} 27. Bd3 {[%clk 0:00:40.7]} 27... Rc8 {[%clk
0:00:49.2]} 28. Kb1 {[%clk 0:00:40.6]} 28... Qe7 {[%clk 0:00:44.5]} 29. Rdf1
{[%clk 0:00:39.4]} 29... b4 {[%clk 0:00:37.6]} 30. Qxf6 {[%clk 0:00:38.7]} 30...
Qc7 {[%clk 0:00:37.4]} 31. Rxh7 {[%clk 0:00:32.7]} 31... Qxh7 {[%clk 0:00:23.3]}
32. Qxe5 {[%clk 0:00:33.2]} 32... bxa3 {[%clk 0:00:23.8]} 33. b3 {[%clk
0:00:28.5]} 33... Qg8 {[%clk 0:00:20.5]} 34. Qe7 {[%clk 0:00:15.7]} 34... Qxg2
{[%clk 0:00:12.4]} 35. Rf7 {[%clk 0:00:15.7]} 35... a2+ {[%clk 0:00:05.2]} 36.
Ka1 {[%clk 0:00:14]} 36... Qg1+ {[%clk 0:00:04.8]} 37. Kxa2 {[%clk 0:00:13.1]}
37... Qb6 {[%clk 0:00:04.9]} 38. Qf6 {[%clk 0:00:06.6]} 38... Qa5+ {[%clk
0:00:04.6]} 39. Kb2 {[%clk 0:00:06.8]} 39... Ka7 {[%clk 0:00:02.5]} 40. Qd4+
{[%clk 0:00:06]} 40... Ka8 {[%clk 0:00:02.4]} 41. e5 {[%clk 0:00:05.9]} 1-0

[Event "Late-Titled-Tuesday-Blitz-March-05-2024"]
[Site "Chess.com"]
[Date "2024.03.05"]
[Round "5"]
[White "XDPS"]
[Black "Szparu"]
[Result "0-1"]
[WhiteElo "2898"]
[BlackElo "2810"]
[TimeControl "180+1"]
[EndTime "14:55:14 PST"]
[Termination "Szparu won by checkmate"]

1. d4 {[%clk 0:03:00.9]} 1... Nf6 {[%clk 0:02:58.6]} 2. Nf3 {[%clk 0:03:01.4]}
2... c5 {[%clk 0:02:57.9]} 3. d5 {[%clk 0:03:01]} 3... b5 {[%clk 0:02:58.1]} 4.
a4 {[%clk 0:02:59.9]} 4... b4 {[%clk 0:02:57.7]} 5. c4 {[%clk 0:03:00.6]} 5...
g6 {[%clk 0:02:55.7]} 6. b3 {[%clk 0:03:01.2]} 6... Bg7 {[%clk 0:02:55.7]} 7.
Bb2 {[%clk 0:03:01.9]} 7... O-O {[%clk 0:02:56]} 8. g3 {[%clk 0:03:02.5]} 8...
e6 {[%clk 0:02:55.7]} 9. dxe6 {[%clk 0:03:01.2]} 9... fxe6 {[%clk 0:02:53.7]}
10. Bg2 {[%clk 0:03:01.3]} 10... Bb7 {[%clk 0:02:52.9]} 11. O-O {[%clk
0:03:01.2]} 11... d6 {[%clk 0:02:49.4]} 12. Nbd2 {[%clk 0:03:01.1]} 12... e5
{[%clk 0:02:49.2]} 13. Qc2 {[%clk 0:03:00.9]} 13... Nbd7 {[%clk 0:02:48.6]} 14.
Rad1 {[%clk 0:03:00.3]} 14... Qe7 {[%clk 0:02:44.5]} 15. Ng5 {[%clk 0:03:00.2]}
15... Bxg2 {[%clk 0:02:44.4]} 16. Kxg2 {[%clk 0:03:01.1]} 16... Ng4 {[%clk
0:02:08.9]} 17. Ndf3 {[%clk 0:03:00.9]} 17... e4 {[%clk 0:01:49.2]} 18. Qxe4
{[%clk 0:02:28.8]} 18... Qxe4 {[%clk 0:01:47.2]} 19. Nxe4 {[%clk 0:02:29.7]}
19... Bxb2 {[%clk 0:01:47.7]} 20. Rxd6 {[%clk 0:02:30]} 20... Nde5 {[%clk
0:01:38.8]} 21. Nxc5 {[%clk 0:02:27.1]} 21... Nxf3 {[%clk 0:01:38.7]} 22. exf3
{[%clk 0:02:27.3]} 22... Ne5 {[%clk 0:01:37]} 23. f4 {[%clk 0:02:24.6]} 23...
Nf7 {[%clk 0:01:28.6]} 24. Rd5 {[%clk 0:02:25]} 24... Rfe8 {[%clk 0:01:25.9]}
25. h4 {[%clk 0:02:14.5]} 25... Re7 {[%clk 0:01:23.4]} 26. h5 {[%clk 0:02:11.3]}
26... Rae8 {[%clk 0:01:23.2]} 27. hxg6 {[%clk 0:02:11.4]} 27... hxg6 {[%clk
0:01:24.1]} 28. Nd3 {[%clk 0:02:06]} 28... Bc3 {[%clk 0:01:23.9]} 29. Rb5 {[%clk
0:02:03.4]} 29... Nd6 {[%clk 0:01:23.7]} 30. Rg5 {[%clk 0:02:02.7]} 30... Kf7
{[%clk 0:01:22.7]} 31. Rh1 {[%clk 0:02:02.7]} 31... Nf5 {[%clk 0:01:20.2]} 32.
Rh7+ {[%clk 0:01:54.7]} 32... Kf6 {[%clk 0:01:20.1]} 33. Rh3 {[%clk 0:01:32.8]}
33... Nd4 {[%clk 0:00:57.8]} 34. Ne5 {[%clk 0:01:26.9]} 34... Rxe5 {[%clk
0:00:57.6]} 35. Rxe5 {[%clk 0:01:27.8]} 35... Rxe5 {[%clk 0:00:57.7]} 36. fxe5+
{[%clk 0:01:28.7]} 36... Kxe5 {[%clk 0:00:58.6]} 37. f4+ {[%clk 0:01:20.1]}
37... Ke4 {[%clk 0:00:54.1]} 38. Rh6 {[%clk 0:01:18.5]} 38... Nxb3 {[%clk
0:00:53.4]} 39. Rxg6 {[%clk 0:01:19.2]} 39... Nc5 {[%clk 0:00:52.4]} 40. Rc6
{[%clk 0:01:15.6]} 40... Kd4 {[%clk 0:00:39]} 41. f5 {[%clk 0:01:15.8]} 41... b3
{[%clk 0:00:39.3]} 42. f6 {[%clk 0:01:13.6]} 42... b2 {[%clk 0:00:39.4]} 43. f7
{[%clk 0:01:12.8]} 43... b1=Q {[%clk 0:00:26.9]} 44. f8=Q {[%clk 0:01:12.2]}
44... Ne4 {[%clk 0:00:20.3]} 45. Qd8+ {[%clk 0:01:03.2]} 45... Ke3 {[%clk
0:00:19.8]} 46. Re6 {[%clk 0:00:51.7]} 46... Qa2+ {[%clk 0:00:14.7]} 47. Kh3
{[%clk 0:00:50]} 47... Qxc4 {[%clk 0:00:15.3]} 48. Qd7 {[%clk 0:00:44.7]} 48...
Qf1+ {[%clk 0:00:10.5]} 49. Kh4 {[%clk 0:00:40.5]} 49... Bf6+ {[%clk 0:00:08.3]}
50. Kh5 {[%clk 0:00:39.2]} 50... Qf5+ {[%clk 0:00:06.3]} 51. Kh6 {[%clk
0:00:38.4]} 51... Qg5+ {[%clk 0:00:06.4]} 52. Kh7 {[%clk 0:00:38.4]} 52... Qh5+
{[%clk 0:00:06.9]} 53. Kg8 {[%clk 0:00:39.1]} 53... Qh8+ {[%clk 0:00:07]} 54.
Kf7 {[%clk 0:00:39.7]} 54... Qg7+ {[%clk 0:00:07.5]} 55. Ke8 {[%clk 0:00:40.4]}
55... Qg8# {[%clk 0:00:08.1]} 0-1

[Event "Late-Titled-Tuesday-Blitz-March-05-2024"]
[Site "Chess.com"]
[Date "2024.03.05"]
[Round "5"]
[White "AldokhinIvan"]
[Black "FabianoCaruana"]
[Result "0-1"]
[WhiteElo "2696"]
[BlackElo "3057"]
[TimeControl "180+1"]
[EndTime "14:55:16 PST"]
[Termination "FabianoCaruana won on time"]

1. e4 {[%clk 0:03:00.9]} 1... c5 {[%clk 0:02:59.7]} 2. Nf3 {[%clk 0:03:01.1]}
2... Nc6 {[%clk 0:03:00.2]} 3. d4 {[%clk 0:03:01.8]} 3... cxd4 {[%clk
0:03:00.5]} 4. Nxd4 {[%clk 0:03:02.5]} 4... Nf6 {[%clk 0:03:00.9]} 5. Nc3 {[%clk
0:03:02]} 5... e5 {[%clk 0:03:01.5]} 6. Ndb5 {[%clk 0:03:02.1]} 6... d6 {[%clk
0:03:01.8]} 7. Bg5 {[%clk 0:03:01.7]} 7... a6 {[%clk 0:03:02.1]} 8. Bxf6 {[%clk
0:03:01.5]} 8... gxf6 {[%clk 0:03:00.8]} 9. Na3 {[%clk 0:03:01.9]} 9... b5
{[%clk 0:03:00.2]} 10. Nd5 {[%clk 0:03:01.8]} 10... Bg7 {[%clk 0:02:57.3]} 11.
c3 {[%clk 0:03:02.1]} 11... f5 {[%clk 0:02:56.8]} 12. g3 {[%clk 0:03:01.6]}
12... fxe4 {[%clk 0:02:52.6]} 13. Bg2 {[%clk 0:03:01.5]} 13... Be6 {[%clk
0:02:53.2]} 14. Bxe4 {[%clk 0:02:57.4]} 14... O-O {[%clk 0:02:51.8]} 15. Nc2
{[%clk 0:02:23.9]} 15... f5 {[%clk 0:02:49.5]} 16. Bg2 {[%clk 0:02:23.2]} 16...
Rc8 {[%clk 0:02:48.6]} 17. O-O {[%clk 0:02:09.2]} 17... e4 {[%clk 0:02:48.7]}
18. a4 {[%clk 0:01:58.7]} 18... b4 {[%clk 0:02:23.9]} 19. cxb4 {[%clk
0:01:40.4]} 19... Ne5 {[%clk 0:02:12.6]} 20. Nce3 {[%clk 0:01:09]} 20... Nd3
{[%clk 0:02:11.6]} 21. f3 {[%clk 0:00:59.7]} 21... Nxb2 {[%clk 0:01:53.2]} 22.
Qe2 {[%clk 0:00:54.2]} 22... Nc4 {[%clk 0:01:39.2]} 23. Rad1 {[%clk 0:00:33.1]}
23... exf3 {[%clk 0:00:55.8]} 24. Bxf3 {[%clk 0:00:31.9]} 24... Nb2 {[%clk
0:00:51]} 25. Nf4 {[%clk 0:00:16.6]} 25... Bf7 {[%clk 0:00:44]} 26. Rd2 {[%clk
0:00:08.1]} 26... Re8 {[%clk 0:00:37.5]} 27. Bd5 {[%clk 0:00:06.9]} 27... Rc7
{[%clk 0:00:29.6]} 28. Bxf7+ {[%clk 0:00:06.5]} 28... Rxf7 {[%clk 0:00:30.5]}
29. Nfd5 {[%clk 0:00:06.9]} 29... Nxa4 {[%clk 0:00:28.5]} 30. Qxa6 {[%clk
0:00:06.8]} 30... Nc3 {[%clk 0:00:26.3]} 31. Qc4 {[%clk 0:00:06.8]} 31... Ne4
{[%clk 0:00:18.5]} 32. Re2 {[%clk 0:00:03.1]} 32... Kh8 {[%clk 0:00:05.8]} 33.
Nxf5 {[%clk 0:00:03.5]} 33... Ng5 {[%clk 0:00:03.9]} 34. Rxe8+ {[%clk
0:00:03.8]} 34... Qxe8 {[%clk 0:00:04.8]} 35. Qg4 {[%clk 0:00:03.5]} 35... h6
{[%clk 0:00:03]} 36. Nf4 {[%clk 0:00:03.6]} 36... Kh7 {[%clk 0:00:01.9]} 37. Qh5
{[%clk 0:00:02.3]} 37... Qe4 {[%clk 0:00:01.5]} 38. Qg6+ {[%clk 0:00:02.5]}
38... Kh8 {[%clk 0:00:02.1]} 39. Nh5 {[%clk 0:00:02.8]} 39... Bd4+ {[%clk
0:00:01.7]} 40. Rf2 {[%clk 0:00:02.2]} 40... Qe1+ {[%clk 0:00:01.5]} 41. Kg2
{[%clk 0:00:02.3]} 41... Qxf2+ {[%clk 0:00:02.4]} 0-1

[Event "Late-Titled-Tuesday-Blitz-March-05-2024"]
[Site "Chess.com"]
[Date "2024.03.05"]
[Round "5"]
[White "toninhojit"]
[Black "Binary010"]
[Result "1-0"]
[WhiteElo "2525"]
[BlackElo "2805"]
[TimeControl "180+1"]
[EndTime "14:55:16 PST"]
[Termination "toninhojit won by resignation"]

1. d4 {[%clk 0:02:41.8]} 1... Nf6 {[%clk 0:02:59.2]} 2. c4 {[%clk 0:02:40.8]}
2... e6 {[%clk 0:02:59.6]} 3. Nf3 {[%clk 0:02:39.6]} 3... b6 {[%clk 0:02:59]} 4.
g3 {[%clk 0:02:39.9]} 4... Ba6 {[%clk 0:02:59]} 5. b3 {[%clk 0:02:39.7]} 5... d5
{[%clk 0:02:57.4]} 6. Nbd2 {[%clk 0:02:36.9]} 6... Bd6 {[%clk 0:02:46.7]} 7. Bg2
{[%clk 0:02:36]} 7... O-O {[%clk 0:02:47]} 8. O-O {[%clk 0:02:34.3]} 8... c5
{[%clk 0:02:47]} 9. Bb2 {[%clk 0:02:24.1]} 9... Nc6 {[%clk 0:02:46.5]} 10. dxc5
{[%clk 0:02:21.5]} 10... bxc5 {[%clk 0:02:43.8]} 11. Rc1 {[%clk 0:02:16.9]}
11... d4 {[%clk 0:02:38.3]} 12. Ng5 {[%clk 0:02:09.7]} 12... Rc8 {[%clk
0:02:31.3]} 13. Qc2 {[%clk 0:02:10]} 13... Nb4 {[%clk 0:02:05.3]} 14. Qb1 {[%clk
0:02:09.3]} 14... h6 {[%clk 0:02:04.3]} 15. Nge4 {[%clk 0:02:09.3]} 15... Nxe4
{[%clk 0:02:04.2]} 16. Nxe4 {[%clk 0:02:10.2]} 16... Be7 {[%clk 0:02:03.3]} 17.
a3 {[%clk 0:02:07]} 17... Nc6 {[%clk 0:02:03.2]} 18. Rfd1 {[%clk 0:02:01.3]}
18... Qb6 {[%clk 0:01:50.8]} 19. Nd2 {[%clk 0:01:34.1]} 19... Na5 {[%clk
0:01:45.3]} 20. Qd3 {[%clk 0:01:33.2]} 20... Rfd8 {[%clk 0:01:45.3]} 21. Rb1
{[%clk 0:01:26.2]} 21... Bg5 {[%clk 0:01:28]} 22. f4 {[%clk 0:01:25.4]} 22...
Be7 {[%clk 0:01:25.7]} 23. Ba1 {[%clk 0:01:25.8]} 23... Qc7 {[%clk 0:01:16.1]}
24. Rdc1 {[%clk 0:01:24]} 24... Bb7 {[%clk 0:01:16]} 25. b4 {[%clk 0:01:22.2]}
25... Bxg2 {[%clk 0:01:15.7]} 26. Kxg2 {[%clk 0:01:22.1]} 26... cxb4 {[%clk
0:01:07.2]} 27. axb4 {[%clk 0:01:20.7]} 27... Nc6 {[%clk 0:01:04.6]} 28. b5
{[%clk 0:01:17.8]} 28... Nb4 {[%clk 0:01:00.6]} 29. Qf3 {[%clk 0:01:15.6]} 29...
d3 {[%clk 0:00:58.8]} 30. Be5 {[%clk 0:01:09.3]} 30... Qd7 {[%clk 0:00:49.7]}
31. e3 {[%clk 0:01:02.8]} 31... f6 {[%clk 0:00:38.2]} 32. Bc3 {[%clk 0:01:02.7]}
32... Na2 {[%clk 0:00:37.2]} 33. Ba5 {[%clk 0:01:00.1]} 33... Nxc1 {[%clk
0:00:32]} 34. Bxd8 {[%clk 0:01:00]} 34... Qxd8 {[%clk 0:00:26.8]} 35. Rxc1
{[%clk 0:00:59]} 35... Qa5 {[%clk 0:00:27.5]} 36. Qd1 {[%clk 0:00:52.6]} 36...
Bb4 {[%clk 0:00:23.9]} 37. Nb3 {[%clk 0:00:53.1]} 37... Qa2+ {[%clk 0:00:22.7]}
38. Kh3 {[%clk 0:00:49.7]} 38... Qe2 {[%clk 0:00:19.8]} 39. Nd4 {[%clk
0:00:38.6]} 39... Qxe3 {[%clk 0:00:18.8]} 40. Nc6 {[%clk 0:00:39]} 40... Bc5
{[%clk 0:00:16.3]} 41. Rc3 {[%clk 0:00:33.9]} 41... Rc7 {[%clk 0:00:02.3]} 42.
Rxd3 {[%clk 0:00:33.6]} 42... Qe4 {[%clk 0:00:02.8]} 43. Rd8+ {[%clk 0:00:31.6]}
43... Kh7 {[%clk 0:00:03.3]} 44. Qd3 {[%clk 0:00:31.4]} 44... Qxd3 {[%clk
0:00:03.6]} 45. Rxd3 {[%clk 0:00:32]} 45... Kg6 {[%clk 0:00:04.4]} 46. Kg4
{[%clk 0:00:30]} 46... h5+ {[%clk 0:00:04.6]} 47. Kf3 {[%clk 0:00:29.4]} 47...
Kf5 {[%clk 0:00:05.5]} 48. h3 {[%clk 0:00:29.1]} 48... g5 {[%clk 0:00:05]} 49.
g4+ {[%clk 0:00:29.5]} 49... hxg4+ {[%clk 0:00:05.3]} 50. hxg4+ {[%clk
0:00:30.4]} 50... Kg6 {[%clk 0:00:06]} 51. Rd8 {[%clk 0:00:29.1]} 51... Rh7
{[%clk 0:00:04.1]} 52. fxg5 {[%clk 0:00:22.9]} 52... Rh6 {[%clk 0:00:03.5]} 53.
gxh6 {[%clk 0:00:22.4]} 1-0

[Event "Late-Titled-Tuesday-Blitz-March-05-2024"]
[Site "Chess.com"]
[Date "2024.03.05"]
[Round "5"]
[White "Bala-Afiada"]
[Black "IngOscarArdila"]
[Result "0-1"]
[WhiteElo "1873"]
[BlackElo "2328"]
[TimeControl "180+1"]
[EndTime "14:55:16 PST"]
[Termination "IngOscarArdila won by resignation"]

1. d4 {[%clk 0:03:00.9]} 1... Nf6 {[%clk 0:02:14.4]} 2. c4 {[%clk 0:02:59.6]}
2... e6 {[%clk 0:02:14.3]} 3. g3 {[%clk 0:02:57.6]} 3... Be7 {[%clk 0:02:14.7]}
4. Nf3 {[%clk 0:02:54.9]} 4... O-O {[%clk 0:02:15.6]} 5. Bg2 {[%clk 0:02:55]}
5... d6 {[%clk 0:02:15.9]} 6. O-O {[%clk 0:02:54.8]} 6... Nbd7 {[%clk
0:02:16.5]} 7. Nc3 {[%clk 0:02:55.2]} 7... c6 {[%clk 0:02:16.4]} 8. e4 {[%clk
0:02:55.5]} 8... Qc7 {[%clk 0:02:16.3]} 9. Bf4 {[%clk 0:02:54.9]} 9... e5 {[%clk
0:02:14.7]} 10. dxe5 {[%clk 0:02:50.8]} 10... dxe5 {[%clk 0:02:15.6]} 11. Bg5
{[%clk 0:02:47.4]} 11... h6 {[%clk 0:02:15.3]} 12. Bd2 {[%clk 0:02:37.9]} 12...
Nc5 {[%clk 0:02:12.6]} 13. Qc2 {[%clk 0:02:34.5]} 13... Bg4 {[%clk 0:02:11.3]}
14. h3 {[%clk 0:02:30.3]} 14... Bxf3 {[%clk 0:02:11.3]} 15. Bxf3 {[%clk
0:02:31.2]} 15... Ne6 {[%clk 0:02:10.7]} 16. Ne2 {[%clk 0:02:06.5]} 16... Rad8
{[%clk 0:02:09.8]} 17. Bg2 {[%clk 0:01:57.9]} 17... Rfe8 {[%clk 0:02:06.7]} 18.
Rad1 {[%clk 0:01:56.1]} 18... Bc5 {[%clk 0:02:06.4]} 19. Bc3 {[%clk 0:01:44.6]}
19... Bd4 {[%clk 0:01:56]} 20. Nxd4 {[%clk 0:00:48.8]} 20... exd4 {[%clk
0:01:55.6]} 21. Bb4 {[%clk 0:00:47.3]} 21... c5 {[%clk 0:01:54.9]} 22. Bd2
{[%clk 0:00:44.3]} 22... a6 {[%clk 0:01:39.6]} 23. Qb3 {[%clk 0:00:41.7]} 23...
b6 {[%clk 0:01:34]} 24. f4 {[%clk 0:00:39.2]} 24... d3 {[%clk 0:01:07.7]} 25. e5
{[%clk 0:00:36.3]} 25... Nd4 {[%clk 0:01:06.1]} 26. Qxd3 {[%clk 0:00:30.9]}
26... Nh5 {[%clk 0:00:56.3]} 27. Kh2 {[%clk 0:00:21]} 27... g6 {[%clk
0:00:54.3]} 28. Bc3 {[%clk 0:00:18.6]} 28... Nf5 {[%clk 0:00:51.2]} 29. Qf3
{[%clk 0:00:16.4]} 29... Nhxg3 {[%clk 0:00:50.3]} 30. Rxd8 {[%clk 0:00:15.3]}
30... Rxd8 {[%clk 0:00:49.6]} 31. Be1 {[%clk 0:00:16]} 31... Nxf1+ {[%clk
0:00:47.3]} 32. Bxf1 {[%clk 0:00:15.6]} 32... Nd4 {[%clk 0:00:45.9]} 33. Qe4
{[%clk 0:00:14.8]} 33... Qc6 {[%clk 0:00:42.3]} 34. Qxc6 {[%clk 0:00:14.2]}
34... Nxc6 {[%clk 0:00:43.2]} 35. Bg2 {[%clk 0:00:14.1]} 35... Nd4 {[%clk
0:00:40]} 36. Bd5 {[%clk 0:00:14.1]} 36... Kg7 {[%clk 0:00:38.9]} 37. Bh4 {[%clk
0:00:14.4]} 37... Rd7 {[%clk 0:00:36.7]} 38. Bf6+ {[%clk 0:00:15]} 38... Kf8
{[%clk 0:00:33.5]} 39. Kg3 {[%clk 0:00:15.6]} 39... Ne6 {[%clk 0:00:32.7]} 40.
Kf3 {[%clk 0:00:15]} 40... b5 {[%clk 0:00:33]} 41. b3 {[%clk 0:00:14.9]} 41...
bxc4 {[%clk 0:00:32.6]} 42. bxc4 {[%clk 0:00:15.8]} 42... a5 {[%clk 0:00:32.9]}
43. Ke4 {[%clk 0:00:16]} 43... a4 {[%clk 0:00:29.7]} 44. h4 {[%clk 0:00:15.4]}
44... a3 {[%clk 0:00:25.6]} 45. f5 {[%clk 0:00:15.5]} 45... gxf5+ {[%clk
0:00:25.1]} 46. Kxf5 {[%clk 0:00:15.8]} 46... Nd4+ {[%clk 0:00:24.1]} 47. Ke4
{[%clk 0:00:16.4]} 47... Ra7 {[%clk 0:00:21.1]} 48. e6 {[%clk 0:00:16.5]} 48...
fxe6 {[%clk 0:00:20.7]} 49. Bxe6 {[%clk 0:00:16]} 49... Nxe6 {[%clk 0:00:20.2]}
50. Kd5 {[%clk 0:00:15.8]} 50... Kf7 {[%clk 0:00:19.9]} 0-1

[Event "Late-Titled-Tuesday-Blitz-March-05-2024"]
[Site "Chess.com"]
[Date "2024.03.05"]
[Round "5"]
[White "DeArron_Fox"]
[Black "ljuks68"]
[Result "0-1"]
[WhiteElo "2539"]
[BlackElo "2439"]
[TimeControl "180+1"]
[EndTime "14:55:18 PST"]
[Termination "ljuks68 won on time"]

1. d4 {[%clk 0:03:00.9]} 1... d5 {[%clk 0:02:48]} 2. c4 {[%clk 0:02:50.5]} 2...
c6 {[%clk 0:02:47.9]} 3. Nc3 {[%clk 0:02:49.6]} 3... Nf6 {[%clk 0:02:48.4]} 4.
e3 {[%clk 0:02:48.1]} 4... e6 {[%clk 0:02:48.1]} 5. Nf3 {[%clk 0:02:45.7]} 5...
Nbd7 {[%clk 0:02:48.1]} 6. Qc2 {[%clk 0:02:46.3]} 6... Bd6 {[%clk 0:02:47.2]} 7.
Bd3 {[%clk 0:02:46.8]} 7... dxc4 {[%clk 0:02:46.7]} 8. Bxc4 {[%clk 0:02:47.7]}
8... b5 {[%clk 0:02:47]} 9. Bd3 {[%clk 0:02:46.7]} 9... Bb7 {[%clk 0:02:47.1]}
10. O-O {[%clk 0:02:47.3]} 10... O-O {[%clk 0:02:45.4]} 11. h3 {[%clk
0:02:41.3]} 11... Rc8 {[%clk 0:02:27.1]} 12. e4 {[%clk 0:02:39.6]} 12... e5
{[%clk 0:02:26.4]} 13. dxe5 {[%clk 0:02:34.4]} 13... Nxe5 {[%clk 0:02:26.3]} 14.
Nxe5 {[%clk 0:02:35.3]} 14... Bxe5 {[%clk 0:02:26.6]} 15. Be3 {[%clk 0:02:36.1]}
15... a6 {[%clk 0:02:13.6]} 16. Bc5 {[%clk 0:02:34.7]} 16... Re8 {[%clk
0:02:06]} 17. Rad1 {[%clk 0:02:34.2]} 17... Qc7 {[%clk 0:02:05.4]} 18. Ne2
{[%clk 0:02:32]} 18... Nd7 {[%clk 0:02:01.1]} 19. f4 {[%clk 0:02:01.7]} 19...
Nxc5 {[%clk 0:02:00.4]} 20. Qxc5 {[%clk 0:02:02.6]} 20... Bd6 {[%clk 0:01:59.4]}
21. Qh5 {[%clk 0:01:55.7]} 21... g6 {[%clk 0:01:58.5]} 22. Qh4 {[%clk
0:01:48.8]} 22... c5 {[%clk 0:01:56]} 23. e5 {[%clk 0:01:48.4]} 23... Be7 {[%clk
0:01:55.7]} 24. Qh6 {[%clk 0:01:45.1]} 24... c4 {[%clk 0:01:55.2]} 25. Bb1
{[%clk 0:01:41.5]} 25... Bc5+ {[%clk 0:01:53.4]} 26. Kh2 {[%clk 0:01:38.4]}
26... Be3 {[%clk 0:01:49.1]} 27. Qg5 {[%clk 0:01:16.8]} 27... Rcd8 {[%clk
0:01:38.2]} 28. Ng3 {[%clk 0:01:12]} 28... Rxd1 {[%clk 0:01:07.4]} 29. Rxd1
{[%clk 0:01:12.9]} 29... Qe7 {[%clk 0:01:07.2]} 30. Qg4 {[%clk 0:00:58.2]} 30...
Qe6 {[%clk 0:00:55.2]} 31. Bf5 {[%clk 0:00:27.4]} 31... h5 {[%clk 0:00:55.1]}
32. Qg5 {[%clk 0:00:13.6]} 32... Qe7 {[%clk 0:00:54.9]} 33. Qh6 {[%clk
0:00:09.3]} 33... Qxe5 {[%clk 0:00:48.6]} 34. Bxg6 {[%clk 0:00:05]} 34... Qg7
{[%clk 0:00:42.5]} 35. Qxg7+ {[%clk 0:00:02.8]} 35... Kxg7 {[%clk 0:00:42.9]}
36. Bc2 {[%clk 0:00:02.4]} 36... h4 {[%clk 0:00:38.2]} 37. Nf5+ {[%clk
0:00:01.8]} 37... Kf6 {[%clk 0:00:36.8]} 38. Nxe3 {[%clk 0:00:02]} 38... Rxe3
{[%clk 0:00:37.3]} 39. Rd6+ {[%clk 0:00:02.5]} 39... Kg7 {[%clk 0:00:31.9]} 40.
Rd2 {[%clk 0:00:03.2]} 40... b4 {[%clk 0:00:26.5]} 41. f5 {[%clk 0:00:02.6]}
41... Kf6 {[%clk 0:00:23]} 42. Rd6+ {[%clk 0:00:02.1]} 42... Kg5 {[%clk
0:00:21.8]} 43. Rb6 {[%clk 0:00:02.2]} 43... Bd5 {[%clk 0:00:20.7]} 44. Rxa6
{[%clk 0:00:01.9]} 44... Re2 {[%clk 0:00:20.6]} 45. Bd1 {[%clk 0:00:01]} 45...
Rxg2+ {[%clk 0:00:20.3]} 46. Kh1 {[%clk 0:00:01.9]} 46... Rxb2+ {[%clk 0:00:20]}
47. Kg1 {[%clk 0:00:02.8]} 47... c3 {[%clk 0:00:18.5]} 48. Rd6 {[%clk
0:00:02.3]} 48... Be4 {[%clk 0:00:18.1]} 49. Rd4 {[%clk 0:00:01.6]} 49... Kf4
{[%clk 0:00:18.5]} 0-1